bitfinex-derivatives/quotes_SOLF0:USTF0_20241231
["timestamp","ask_amount","ask_price","bid_price","bid_amount"]
[1735623515424,2.643,189.45,189.44,31.65357843]
[1735623515626,2.6429,189.46,189.44,31.65357843]
[1735623516526,2.643,189.45,189.44,31.65357843]
[1735623517636,2.6429,189.46,189.44,31.65357843]
[1735623518432,12.08476484,189.54,189.44,31.65357843]
[1735623518634,2.6427,189.47,189.44,31.65357843]
[1735623519035,3.06,189.53,189.44,31.65357843]
[1735623520535,2.6429,189.46,189.44,31.65357843]
[1735623520740,3.06,189.53,189.44,31.65357843]
[1735623520932,2.643,189.45,189.44,31.65357843]
[1735623521833,14.72776484,189.45,189.44,31.65357843]
[1735623528441,15.54198605,189.45,189.44,31.65357843]
[1735623528942,14.72776484,189.45,189.44,31.65357843]
[1735623529442,15.54196884,189.45,189.44,31.65357843]
[1735623529633,15.54196884,189.45,189.44,28.47347843]
[1735623529836,15.54196884,189.45,189.32,12.08476484]
[1735623529837,2.6446,189.34,189.32,12.08476484]
[1735623535040,2.6447,189.33,189.32,12.08476484]
[1735623535939,2.6443,189.36,189.32,12.08476484]
[1735623536141,3.04,189.42,189.32,12.08476484]
[1735623536843,2.6443,189.36,189.32,12.08476484]
[1735623537045,3.04,189.42,189.32,12.08476484]
[1735623538144,2.6438,189.39,189.32,12.08476484]
[1735623538345,3.04,189.42,189.32,12.08476484]
[1735623539040,2.6443,189.36,189.32,12.08476484]
[1735623539744,15.12476484,189.42,189.3,4.6407]
[1735623539944,0.81442489,189.41,189.3,4.6407]
[1735623540449,2.6448,189.33,189.32,7.72659048]
[1735623540650,10.76659048,189.37,189.3,12.36729048]
[1735623540954,2.645,189.31,189.3,12.36729048]
[1735623541847,2.6448,189.33,189.3,12.36729048]
[1735623542040,10.76659048,189.37,189.3,12.36729048]
[1735623542238,3.04,189.37,189.3,4.6407]
[1735623543648,2.6449,189.32,189.3,4.6407]
[1735623543946,2.6447,189.33,189.3,4.6407]
[1735623546756,2.6448,189.32,189.3,4.6407]
[1735623549162,3.04,189.37,189.3,4.6407]
[1735623549461,3.04,189.4,189.31,12.07420593]
[1735623550461,2.6449,189.32,189.3,4.6407]
[1735623551263,2.6441,189.37,189.3,4.6407]
[1735623551464,3.04,189.4,189.3,4.6407]
[1735623551862,3.04,189.4,189.3,7.2858]
[1735623552166,3.04,189.4,189.3,4.6407]
[1735623552464,2.6443,189.36,189.32,2.6448]
[1735623553863,2.6443,189.36,189.3,4.6407]
[1735623554162,2.6443,189.36,189.31,2.6449]
[1735623555168,2.6445,189.34,189.3,4.6407]
[1735623555662,3.04,189.4,189.3,4.6407]
[1735623555860,2.6448,189.32,189.3,4.6407]
[1735623559370,3.04,189.35,189.3,4.6407]
[1735623559668,3.04,189.4,189.3,4.6407]
[1735623560169,2.6441,189.37,189.32,2.6447]
[1735623560970,2.6443,189.36,189.32,2.6447]
[1735623562167,2.6444,189.35,189.31,2.6449]
[1735623564466,2.6444,189.35,189.32,7.72640021]
[1735623565073,2.6443,189.36,189.32,10.37120021]
[1735623566875,2.6443,189.36,189.32,7.72640021]
[1735623567076,2.6443,189.36,189.33,2.6447]
[1735623567775,2.6441,189.37,189.34,2.6445]
[1735623567975,7.72640021,189.42,189.34,7.72640021]
[1735623568177,10.76640021,189.42,189.34,7.72640021]
[1735623568377,7.72640021,189.42,189.34,7.72640021]
[1735623568578,7.3114614,189.44,189.38,7.72640021]
[1735623569077,15.03786161,189.44,189.38,7.72640021]
[1735623569281,15.03786161,189.44,189.36,7.72640021]
[1735623569479,15.03786161,189.44,189.38,7.72640021]
[1735623569777,2.6432,189.44,189.38,7.72640021]
[1735623569967,2.6432,189.44,189.39,1.5539]
[1735623570170,10.76640021,189.46,189.39,1.5539]
[1735623570371,2.643,189.45,189.39,4.1977]
[1735623570679,7.72640021,189.49,189.42,7.72640021]
[1735623571479,2.6427,189.47,189.42,7.72640021]
[1735623571875,7.72640021,189.47,189.4,7.72640021]
[1735623573179,2.643,189.45,189.4,7.72640021]
[1735623573482,7.72640021,189.47,189.4,7.72640021]
[1735623573882,10.76640021,189.49,189.42,7.72640021]
[1735623574378,2.6427,189.47,189.42,7.72640021]
[1735623575679,2.6429,189.46,189.42,7.72640021]
[1735623577777,7.72640021,189.47,189.4,9.27690021]
[1735623577978,2.643,189.45,189.4,9.27690021]
[1735623578582,2.6431,189.44,189.4,9.27690021]
[1735623579877,7.72640021,189.47,189.4,1.5505]
[1735623580079,7.72640021,189.47,189.39,1.5539]
[1735623580286,7.72640021,189.45,189.39,9.28030021]
[1735623580786,2.6437,189.41,189.39,9.28030021]
[1735623580985,7.72640021,189.45,189.39,9.28030021]
[1735623581383,7.72640021,189.47,189.39,9.28030021]
[1735623582385,3.04,189.48,189.41,7.72640021]
[1735623582589,10.76640021,189.48,189.41,7.72640021]
[1735623582985,2.643,189.46,189.41,7.72640021]
[1735623583184,3.04,189.48,189.39,1.5539]
[1735623583483,7.72640021,189.51,189.44,7.72640021]
[1735623584087,2.6426,189.48,189.44,7.72640021]
[1735623584789,2.6426,189.48,189.43,2.6433]
[1735623585088,2.643,189.46,189.42,7.72640021]
[1735623585688,2.643,189.46,189.41,2.6435]
[1735623585884,2.643,189.46,189.42,7.72640021]
[1735623586290,2.643,189.46,189.41,2.6435]
[1735623586592,2.643,189.46,189.42,7.72640021]
[1735623587486,2.6433,189.43,189.42,7.72640021]
[1735623587687,10.76640021,189.47,189.4,7.72640021]
[1735623588385,2.6435,189.42,189.4,7.72640021]
[1735623589087,10.76640021,189.47,189.4,7.72640021]
[1735623590186,2.643,189.45,189.4,7.72640021]
[1735623590583,10.76640021,189.47,189.4,7.72640021]
[1735623590787,2.6429,189.46,189.41,2.6435]
[1735623593193,10.76640021,189.47,189.42,7.72640021]
[1735623593392,3.04,189.47,189.42,7.72640021]
[1735623593592,3.04,189.47,189.44,7.72640021]
[1735623593788,2.6424,189.49,189.44,10.36940021]
[1735623598386,10.76640021,189.51,189.4,3.04]
[1735623598588,10.76640021,189.51,189.4,2.6436]
[1735623598589,7.72640021,189.47,189.4,2.6436]
[1735623598796,7.72640021,189.47,189.4,10.37000021]
[1735623599298,2.643,189.45,189.4,10.37000021]
[1735623599795,2.6433,189.43,189.4,7.72640021]
[1735623600290,2.6435,189.42,189.39,1.5539]
[1735623600498,7.72640021,189.45,189.39,1.5539]
[1735623600793,10.76640021,189.45,189.37,7.72640021]
[1735623600992,3.04,189.45,189.39,7.72640021]
[1735623602298,2.6432,189.44,189.39,10.37020021]
[1735623603495,2.6432,189.44,189.33,4.7545]
[1735623603496,7.72640021,189.44,189.37,7.72640021]
[1735623604002,2.6437,189.4,189.37,7.72640021]
[1735623607195,7.72640021,189.44,189.37,7.72640021]
[1735623607595,7.72640021,189.42,189.35,7.72640021]
[1735623607791,2.6443,189.36,189.33,9.33410021]
[1735623609098,3.04,189.39,189.35,7.72640021]
[1735623609402,2.6438,189.4,189.37,7.72640021]
[1735623610696,5.6836,189.41,189.37,7.72640021]
[1735623612103,1.6117,189.48,189.39,7.72640021]
[1735623612301,3.04,189.47,189.41,7.72640021]
[1735623613398,2.643,189.46,189.41,7.72640021]
[1735623613798,7.72640021,189.46,189.35,1.4769]
[1735623613997,7.72640021,189.46,189.39,7.72640021]
[1735623614398,2.6434,189.42,189.36,2.6441]
[1735623614599,7.72640021,189.44,189.37,7.72640021]
[1735623615199,2.6438,189.4,189.37,7.72640021]
[1735623616601,10.76640021,189.42,189.35,7.72640021]
[1735623616798,2.644,189.38,189.35,7.72640021]
[1735623617005,10.76640021,189.42,189.35,7.72640021]
[1735623617604,2.6439,189.39,189.35,7.72640021]
[1735623618603,10.76640021,189.42,189.35,7.72640021]
[1735623618808,2.6441,189.38,189.33,9.33410021]
[1735623619506,2.6438,189.39,189.33,11.97870021]
[1735623619709,7.72640021,189.4,189.33,11.97870021]
[1735623620510,2.644,189.38,189.33,11.97870021]
[1735623621612,7.72640021,189.4,189.33,9.33410021]
[1735623621811,10.37020021,189.4,189.34,2.6444]
[1735623622414,2.6438,189.4,189.35,7.72640021]
[1735623625317,7.72640021,189.4,189.33,9.33410021]
[1735623625721,10.76640021,189.42,189.33,9.33410021]
[1735623626320,2.6439,189.39,189.33,11.97870021]
[1735623626620,2.6439,189.39,189.35,7.72640021]
[1735623628715,7.72640021,189.44,189.37,7.72640021]
[1735623629019,2.6434,189.42,189.37,7.72640021]
[1735623629222,2.6434,189.42,189.39,7.72640021]
[1735623633622,7.72640021,189.44,189.37,9.34080021]
[1735623633826,2.6436,189.41,189.37,9.34080021]
[1735623634015,7.72640021,189.44,189.37,9.34080021]
[1735623634219,7.72640021,189.42,189.37,1.6144]
[1735623635024,7.72640021,189.42,189.33,4.2524]
[1735623635327,7.72640021,189.4,189.3,1.5684]
[1735623635528,3.04,189.39,189.32,7.72640021]
[1735623635917,2.6444,189.36,189.32,7.72640021]
[1735623636117,3.04,189.39,189.32,7.72640021]
[1735623636323,3.04,189.39,189.34,7.72640021]
[1735623637026,5.684,189.39,189.34,7.72640021]
[1735623637621,2.644,189.38,189.34,7.72640021]
[1735623638325,3.04,189.39,189.34,7.72640021]
[1735623638525,2.6441,189.37,189.34,7.72640021]
[1735623639528,3.04,189.39,189.34,7.72640021]
[1735623639827,2.6443,189.36,189.34,7.72640021]
[1735623640226,2.644,189.39,189.34,7.72640021]
[1735623640425,2.644,189.39,189.37,7.72640021]
[1735623641330,2.6437,189.41,189.37,7.72640021]
[1735623642127,2.6438,189.4,189.37,7.72640021]
[1735623653938,10.76640021,189.43,189.37,7.72640021]
[1735623654143,10.76640021,189.43,189.35,9.20650021]
[1735623654739,7.72640021,189.41,189.35,9.20650021]
[1735623658540,2.6442,189.37,189.35,9.20650021]
[1735623658941,3.04,189.43,189.35,9.20650021]
[1735623659142,7.72640021,189.42,189.35,9.20650021]
[1735623659945,2.644,189.38,189.35,9.20650021]
[1735623660646,2.6441,189.37,189.35,9.20650021]
[1735623661640,2.6443,189.36,189.35,1.4801]
[1735623661840,7.72640021,189.42,189.35,1.4801]
[1735623662954,2.6441,189.38,189.35,1.4801]
[1735623663150,7.72640021,189.42,189.35,1.4801]
[1735623663754,2.6437,189.4,189.35,1.4801]
[1735623663947,3.04,189.43,189.35,1.4801]
[1735623664252,3.04,189.42,189.37,7.72640021]
[1735623665157,7.3114614,189.46,189.39,7.72640021]
[1735623665453,10.3514614,189.46,189.39,7.72640021]
[1735623665748,10.3514614,189.46,189.36,1.5689]
[1735623665749,9.9544614,189.46,189.41,7.72640021]
[1735623666152,2.643,189.46,189.41,7.72640021]
[1735623667659,7.8300059,189.53,189.43,7.72640021]
[1735623667952,2.32424966,189.53,189.47,7.72640021]
[1735623668649,2.642,189.52,189.47,7.72640021]
[1735623669951,7.72640021,189.55,189.49,7.72640021]
[1735623670156,7.72640021,189.57,189.49,7.72640021]
[1735623671651,7.72640021,189.57,189.51,7.72640021]
[1735623671851,7.3114614,189.64,189.51,7.72640021]
[1735623672154,7.72640021,189.59,189.53,7.72640021]
[1735623673453,2.6413,189.57,189.53,7.72640021]
[1735623674653,3.04,189.6,189.44,3.1743]
[1735623674654,7.72640021,189.55,189.47,2.6427]
[1735623674854,7.72640021,189.55,189.47,7.72640021]
[1735623675054,10.76640021,189.55,189.47,7.72640021]
[1735623675252,2.642,189.52,189.47,7.72640021]
[1735623675552,7.72640021,189.53,189.45,1.5869]
[1735623675852,7.72640021,189.53,189.46,7.72640021]
[1735623677551,2.6422,189.51,189.46,7.72640021]
[1735623678762,2.6423,189.5,189.46,7.72640021]
[1735623679463,2.6426,189.49,189.46,7.72640021]
[1735623679658,7.72640021,189.53,189.46,7.72640021]
[1735623681456,2.6426,189.49,189.46,7.72640021]
[1735623682465,2.6427,189.47,189.45,1.5869]
[1735623682762,7.72640021,189.51,189.45,1.5869]
[1735623683366,2.6426,189.49,189.45,1.5869]
[1735623685869,7.72640021,189.51,189.45,1.5869]
[1735623686063,2.6426,189.48,189.45,1.5869]
[1735623690577,2.6424,189.5,189.46,7.72640021]
[1735623691272,7.72640021,189.53,189.46,7.72640021]
[1735623691273,2.6426,189.48,189.46,7.72640021]
[1735623691771,2.6427,189.47,189.44,7.72640021]
[1735623691968,7.72640021,189.49,189.35,4.5587]
[1735623692170,7.72640021,189.46,189.39,7.72640021]
[1735623692368,2.6437,189.4,189.35,7.2031]
[1735623692576,2.6437,189.4,189.37,7.72640021]
[1735623693279,7.72640021,189.44,189.37,7.72640021]
[1735623693280,2.6436,189.41,189.37,7.72640021]
[1735623695595,2.6439,189.39,189.35,12.28510021]
[1735623695879,2.6439,189.39,189.35,9.27920021]
[1735623696477,2.644,189.38,189.35,9.27920021]
[1735623697074,3.04,189.43,189.35,9.27920021]
[1735623697279,3.04,189.43,189.37,7.72640021]
[1735623697581,2.6437,189.41,189.37,7.72640021]
[1735623697779,7.72640021,189.46,189.39,7.72640021]
[1735623700082,2.6431,189.44,189.39,7.72640021]
[1735623701376,7.72640021,189.46,189.39,10.37020021]
[1735623701579,2.6433,189.43,189.39,7.72640021]
[1735623701779,7.72640021,189.46,189.38,2.644]
[1735623701984,2.6436,189.41,189.39,7.72640021]
[1735623705186,2.6437,189.4,189.39,7.72640021]
[1735623706273,2.6436,189.41,189.39,7.72640021]
[1735623706981,7.72640021,189.46,189.39,7.72640021]
[1735623706982,2.6437,189.4,189.39,7.72640021]
[1735623708083,2.6436,189.41,189.39,7.72640021]
[1735623708888,2.6433,189.43,189.39,7.72640021]
[1735623713588,10.76640021,189.46,189.39,7.72640021]
[1735623714189,2.6436,189.41,189.39,7.72640021]
[1735623715395,7.72640021,189.44,189.35,1.5528]
[1735623715586,7.72640021,189.42,189.35,1.5528]
[1735623716785,2.6439,189.39,189.35,1.5528]
[1735623717586,2.6439,189.39,189.35,4.1971]
[1735623719083,7.72640021,189.42,189.36,7.72640021]
[1735623719289,2.6434,189.42,189.38,10.37040021]
[1735623719487,10.76640021,189.44,189.38,7.72640021]
[1735623719689,10.76640021,189.44,189.36,7.72640021]
[1735623720690,2.6437,189.41,189.36,10.37060021]
[1735623724195,2.6434,189.42,189.38,7.72640021]
[1735623726396,3.04,189.44,189.38,7.72640021]
[1735623726695,2.6436,189.41,189.38,7.72640021]
[1735623729199,3.04,189.44,189.38,7.72640021]
[1735623729391,7.72640021,189.43,189.34,3.0152]
[1735623729597,7.72640021,189.41,189.34,1.5035]
[1735623730488,2.6441,189.38,189.34,1.5035]
[1735623730693,7.72640021,189.41,189.35,7.72640021]
[1735623730998,3.04,189.43,189.37,7.72640021]
[1735623731194,3.04,189.44,189.39,7.72640021]
[1735623731394,3.04,189.44,189.34,1.5035]
[1735623731395,10.76640021,189.44,189.34,1.5035]
[1735623731592,10.76640021,189.44,189.36,7.72640021]
[1735623732192,7.72640021,189.42,189.36,7.72640021]
[1735623732395,7.72640021,189.42,189.34,9.22990021]
[1735623733608,2.6439,189.39,189.34,11.87440021]
[1735623735902,2.6441,189.38,189.34,9.22990021]
[1735623738508,7.72640021,189.42,189.34,9.22990021]
[1735623738701,2.6441,189.37,189.34,9.22990021]
[1735623739504,2.6443,189.36,189.34,9.22990021]
[1735623739708,7.72640021,189.38,189.31,1.26963]
[1735623740009,7.72640021,189.36,189.31,1.26963]
[1735623740322,10.76640021,189.36,189.31,1.26963]
[1735623740908,2.6446,189.34,189.31,1.26963]
[1735623742302,3.04,189.36,189.31,8.99603021]
[1735623742617,3.04,189.36,189.33,7.72640021]
[1735623743711,5.6843,189.36,189.31,11.64093021]
[1735623744413,2.6444,189.35,189.31,11.64093021]
[1735623746212,3.04,189.36,189.31,11.64093021]
[1735623746412,2.6443,189.36,189.31,11.64093021]
[1735623748910,3.04,189.38,189.31,8.99603021]
[1735623749113,2.6446,189.34,189.31,1.26963]
[1735623750720,2.6448,189.32,189.31,1.26963]
[1735623752010,7.72640021,189.35,189.31,1.26963]
[1735623752207,2.6446,189.34,189.31,1.26963]
[1735623752722,2.6442,189.37,189.31,8.99603021]
[1735623753621,2.6442,189.37,189.32,2.6447]
[1735623755221,2.6443,189.36,189.31,11.64093021]
[1735623756923,2.6446,189.34,189.31,8.99603021]
[1735623757619,2.6447,189.33,189.31,1.26963]
[1735623759017,7.72640021,189.36,189.31,1.26963]
[1735623759218,2.6448,189.32,189.31,1.26963]
[1735623760421,10.37120021,189.32,189.31,1.26963]
[1735623761525,2.6456,189.27,189.23,9.26850021]
[1735623764321,7.72640021,189.28,189.23,7.72640021]
[1735623764525,2.6459,189.25,189.22,1.544]
[1735623765429,7.72640021,189.26,189.18,1.5969]
[1735623765625,7.72640021,189.24,189.18,9.32330021]
[1735623766730,2.6463,189.22,189.18,9.32330021]
[1735623767232,7.72640021,189.26,189.18,9.32330021]
[1735623767426,2.6461,189.24,189.18,11.97010021]
[1735623769227,2.6461,189.24,189.18,4.2437]
[1735623769434,2.6461,189.24,189.19,7.72640021]
[1735623770940,2.6462,189.22,189.19,7.72640021]
[1735623771333,2.6462,189.22,189.17,9.31090021]
[1735623771636,7.72640021,189.22,189.17,9.31090021]
[1735623772135,7.72640021,189.22,189.17,7.72640021]
[1735623772336,7.72640021,189.22,189.16,1.5737]
[1735623773538,2.6468,189.19,189.16,1.5737]
[1735623774226,7.72640021,189.22,189.16,1.5737]
[1735623774434,2.6465,189.2,189.16,1.5737]
[1735623776340,10.37270021,189.22,189.16,4.2207]
[1735623776638,7.72640021,189.22,189.17,7.72640021]
[1735623777536,2.6464,189.21,189.16,1.5737]
[1735623778841,2.6467,189.19,189.16,1.5737]
[1735623780529,7.72640021,189.22,189.16,1.5737]
[1735623780736,7.72640021,189.18,189.11,9.34130021]
[1735623780935,10.76640021,189.18,189.11,9.34130021]
[1735623781237,2.6471,189.16,189.11,9.34130021]
[1735623781542,10.76640021,189.18,189.13,7.72640021]
[1735623781741,3.97181532,189.29,189.15,7.72640021]
[1735623781938,7.72640021,189.23,189.17,7.72640021]
[1735623782336,2.6463,189.22,189.17,7.72640021]
[1735623783341,2.6461,189.24,189.19,7.72640021]
[1735623783643,7.72640021,189.26,189.19,7.72640021]
[1735623783947,3.04,189.27,189.19,7.72640021]
[1735623784246,7.72640021,189.25,189.19,7.72640021]
[1735623784547,2.6462,189.23,189.19,7.72640021]
[1735623784747,7.72640021,189.23,189.18,1.6212]
[1735623785042,2.6464,189.21,189.18,1.6212]
[1735623785239,7.72640021,189.21,189.14,9.35750021]
[1735623785845,2.647,189.16,189.14,1.6311]
[1735623786052,7.72640021,189.19,189.12,7.72640021]
[1735623787349,7.72640021,189.17,189.11,1.4822]
[1735623787647,10.76640021,189.17,189.11,1.4822]
[1735623788248,3.04,189.17,189.11,1.4822]
[1735623788448,2.6474,189.14,189.11,1.4822]
[1735623788644,10.76640021,189.17,189.11,1.4822]
[1735623790045,2.6472,189.16,189.11,1.4822]
[1735623790351,10.76640021,189.17,189.11,1.4822]
[1735623791351,10.76640021,189.21,189.14,7.72640021]
[1735623791846,2.6466,189.2,189.14,10.37370021]
[1735623792049,1.5967,189.29,189.16,7.72640021]
[1735623792244,7.72640021,189.25,189.18,7.72640021]
[1735623792448,7.72640021,189.25,189.19,1.5027]
[1735623793450,2.646,189.24,189.19,4.1493]
[1735623793951,2.646,189.24,189.19,1.5027]
[1735623794353,2.6461,189.23,189.19,1.5027]
[1735623795252,7.72640021,189.25,189.19,1.5027]
[1735623795253,2.6464,189.21,189.19,1.5027]
[1735623796947,7.72640021,189.25,189.19,1.5027]
[1735623796948,2.6465,189.2,189.19,1.5027]
[1735623797247,7.72640021,189.23,189.16,7.72640021]
[1735623797657,3.04,189.27,189.16,7.72640021]
[1735623797857,7.72640021,189.25,189.16,7.72640021]
[1735623799159,7.72640021,189.25,189.18,7.72640021]
[1735623799759,8.4940614,189.32,189.2,7.72640021]
[1735623799760,3.04,189.3,189.2,7.72640021]
[1735623800058,7.72640021,189.3,189.24,7.72640021]
[1735623801457,10.76640021,189.32,189.26,7.72640021]
[1735623802557,2.645,189.31,189.26,7.72640021]
[1735623802757,7.72640021,189.32,189.26,7.72640021]
[1735623803054,7.72640021,189.34,189.28,7.72640021]
[1735623803254,2.6448,189.33,189.28,7.72640021]
[1735623803455,7.72640021,189.34,189.28,7.72640021]
[1735623804057,7.72640021,189.34,189.26,10.37200021]
[1735623804254,3.04,189.35,189.26,2.6456]
[1735623805363,3.04,189.35,189.24,2.6459]
[1735623807163,3.04,189.35,189.23,14.7249142]
[1735623807769,12.0789142,189.33,189.22,3.0102]
[1735623808159,2.6455,189.28,189.21,1.5606]
[1735623808361,3.04,189.28,189.21,1.5606]
[1735623808762,2.6455,189.27,189.21,1.5606]
[1735623808963,3.04,189.28,189.21,1.5606]
[1735623810366,2.6458,189.26,189.21,1.5606]
[1735623811863,3.04,189.28,189.21,1.5606]
[1735623812064,2.6458,189.25,189.21,1.5606]
[1735623814873,2.6461,189.23,189.21,1.5606]
[1735623815174,3.04,189.28,189.21,1.5606]
[1735623815672,2.6459,189.24,189.21,1.5606]
[1735623817976,2.6457,189.26,189.21,4.2069]
[1735623818582,2.6458,189.25,189.21,4.2069]
[1735623820075,2.6453,189.29,189.25,2.6458]
[1735623820274,12.0789142,189.33,189.23,15.1189142]
[1735623820275,3.04,189.33,189.23,15.1189142]
[1735623820482,3.04,189.33,189.24,3.1728]
[1735623821477,2.6451,189.3,189.26,2.6455]
[1735623823482,12.0789142,189.32,189.21,1.5606]
[1735623823871,2.6453,189.29,189.21,1.5606]
[1735623824074,3.04,189.29,189.21,1.5606]
[1735623825184,2.6455,189.28,189.23,2.6459]
[1735623825679,3.04,189.29,189.21,1.5606]
[1735623825886,2.6453,189.29,189.21,1.5606]
[1735623826286,2.6453,189.29,189.25,7.7319852]
[1735623826880,2.6453,189.29,189.25,10.3777852]
[1735623828387,2.6453,189.29,189.25,7.7319852]
[1735623828692,7.7319852,189.3,189.23,7.7319852]
[1735623828885,2.6456,189.27,189.23,7.7319852]
[1735623829684,2.6456,189.27,189.23,10.3780852]
[1735623834595,7.7319852,189.3,189.23,10.3780852]
[1735623834793,7.7319852,189.3,189.22,2.6462]
[1735623835296,7.7319852,189.28,189.22,2.6462]
[1735623835686,2.6457,189.26,189.22,2.6462]
[1735623840499,7.7319852,189.28,189.22,2.6462]
[1735623840701,2.6455,189.27,189.23,7.7319852]
[1735623840901,10.7719852,189.3,189.23,7.7319852]
[1735623841098,7.7319852,189.28,189.21,9.2925852]
[1735623841301,2.6458,189.25,189.21,9.2925852]
[1735623841799,7.7319852,189.28,189.22,2.6461]
[1735623842201,2.6456,189.27,189.22,2.6461]
[1735623842407,7.7319852,189.28,189.22,2.6461]
[1735623842803,2.6455,189.27,189.22,2.6461]
[1735623843398,29.31613485,189.33,189.27,2.6454]
[1735623843602,29.31613485,189.33,189.27,10.3773852]
[1735623844099,10.7719852,189.34,189.23,3.04]
[1735623844302,10.7719852,189.34,189.26,10.3775852]
[1735623844500,2.645,189.31,189.26,10.3775852]
[1735623844706,10.7719852,189.34,189.26,7.7319852]
[1735623845504,2.6448,189.32,189.27,2.6455]
[1735623845904,3.96962176,189.37,189.26,7.7319852]
[1735623846105,7.7319852,189.36,189.28,7.7319852]
[1735623847303,7.7319852,189.34,189.28,7.7319852]
[1735623847605,7.7319852,189.34,189.26,10.7719852]
[1735623848505,2.645,189.31,189.26,13.4175852]
[1735623848904,2.645,189.31,189.26,10.3775852]
[1735623849102,2.6447,189.33,189.28,10.3771852]
[1735623849612,2.6445,189.35,189.3,2.6451]
[1735623849909,1.6245,189.38,189.3,2.6451]
[1735623849910,7.32903371,189.41,189.3,7.7319852]
[1735623850206,7.7319852,189.38,189.3,7.7319852]
[1735623851503,2.6443,189.36,189.31,2.6449]
[1735623852108,7.7319852,189.38,189.3,7.7319852]
[1735623852308,2.6446,189.34,189.3,7.7319852]
[1735623853106,7.7319852,189.36,189.3,7.7319852]
[1735623853307,2.6447,189.33,189.3,7.7319852]
[1735623854009,2.6446,189.34,189.3,7.7319852]
[1735623854414,7.7319852,189.36,189.3,7.7319852]
[1735623854711,2.6444,189.36,189.31,2.6449]
[1735623857519,7.7319852,189.38,189.3,7.7319852]
[1735623858519,2.6445,189.34,189.3,7.7319852]
[1735623859123,7.7319852,189.36,189.3,7.7319852]
[1735623859320,2.6447,189.33,189.3,7.7319852]
[1735623861326,7.7319852,189.36,189.28,12.2578852]
[1735623861327,2.6448,189.32,189.28,12.2578852]
[1735623862319,2.6451,189.31,189.28,1.4688]
[1735623862530,7.7319852,189.34,189.28,1.4688]
[1735623863024,2.6451,189.3,189.28,1.4688]
[1735623863817,3.04,189.37,189.29,7.7319852]
[1735623864027,10.7719852,189.37,189.29,7.7319852]
[1735623864224,7.7319852,189.37,189.29,7.7319852]
[1735623864420,1.66120517,189.42,189.33,7.7319852]
[1735623864726,29.31613485,189.43,189.37,7.7319852]
[1735623864921,2.6435,189.42,189.37,10.3760852]
[1735623869331,7.7319852,189.4,189.33,7.7319852]
[1735623870337,2.644,189.38,189.33,10.3765852]
[1735623871941,2.644,189.38,189.34,2.6445]
[1735623872437,7.7319852,189.38,189.29,3.1105]
[1735623872638,7.7319852,189.36,189.29,1.5844]
[1735623872940,2.6448,189.33,189.29,1.5844]
[1735623873531,7.7319852,189.35,189.28,9.2007852]
[1735623873735,2.6448,189.32,189.28,9.2007852]
[1735623874442,2.6448,189.32,189.28,4.1141]
[1735623874642,2.6451,189.3,189.28,1.4688]
[1735623874837,2.6451,189.3,189.25,15.11730843]
[1735623875038,12.07730843,189.35,189.26,2.6456]
[1735623875633,2.6451,189.31,189.26,2.6456]
[1735623876539,2.6452,189.29,189.24,4.1847]
[1735623876739,12.07730843,189.35,189.24,4.1847]
[1735623877354,2.6449,189.32,189.24,4.1847]
[1735623877542,12.07730843,189.35,189.24,4.1847]
[1735623878443,12.07730843,189.35,189.24,2.6458]
[1735623878644,13.25920843,189.35,189.24,2.6458]
[1735623878839,12.07730843,189.32,189.24,2.6458]
[1735623879043,3.04,189.31,189.24,2.6458]
[1735623879243,2.6452,189.3,189.25,2.6458]
[1735623880846,2.6452,189.3,189.23,1.5464]
[1735623881042,2.6452,189.3,189.23,4.1923]
[1735623882952,2.6452,189.3,189.23,1.5464]
[1735623883149,3.04,189.31,189.23,1.5464]
[1735623883453,3.04,189.31,189.21,12.07730843]
[1735623883655,3.04,189.31,189.18,18.20180843]
[1735623883844,3.04,189.31,189.22,2.6462]
[1735623883845,2.6455,189.27,189.22,2.6462]
[1735623884844,3.04,189.31,189.18,15.16180843]
[1735623885050,2.6457,189.26,189.2,2.6465]
[1735623885651,3.04,189.31,189.18,15.16180843]
[1735623885952,12.07730843,189.29,189.19,2.6466]
[1735623886452,2.6458,189.25,189.19,2.6466]